[Event "WYCC 2018 G16"]
[Site "Halkidiki"]
[Date "2018.10.30"]
[Round "11"]
[White "Gombocz, Zsofia"]
[Black "Zhang, Cindy"]
[Result "1-0"]
[ECO "C07"]
[WhiteElo "2038"]
[BlackElo "1790"]
[Annotator "NA"]
[PlyCount "91"]
[EventDate "2018.10.20"]
[EventType "swiss"]
[EventCountry "GRE"]
[SourceTitle "playchess.com"]
[Source "ChessBase"]
[SourceQuality "1"]
[TimeControl "40/5400+30:1800+30"]

1. e4 {[%emt 0:00:00]} e6 {[%emt 0:00:00]} 2. d4 {[%emt 0:00:00]} d5 {[%emt 0:00:00]} 3. Nd2 {[%emt 0:00:00]} c5 {[%emt 0:00:00]} 4. Ngf3 {[%emt 0:00:00]} cxd4 {[%emt 0:00:07]} 5. exd5 {[%emt 0:00:08]} Qxd5 {[%emt 0:00:08]} 6. Bc4 {[%emt 0:00:11]} Qd6 {[%emt 0:00:18]} 7. O-O {[%emt 0:00:22]} Nf6 {[%emt 0:00:17]} 8. Nb3 {[%emt 0:00:47]} Nc6 {[%emt 0:00:22]} 9. Nfxd4 {[%emt 0:01:14]} Nxd4 {[%emt 0:00:40]} 10. Nxd4 {[%emt 0:01:27]} Be7 {[%emt 0:00:27]} 11. Be3 {[%emt 0:03:20] C07: French Tarrasch: 3...c5, 4 Ngf3 and 4 exd5 Qxd5} (11. b3 a6 12. Bb2 O-O 13. Qf3 Bd7 14. Rfe1 b5 15. Bd3 Rfe8 16. Rad1 Qc5 17. Qg3 Bd6 18. Qh4 e5 19. Nf5 Bxf5 20. Bxf5 {½-½ (50) Priyadharshan,K (2554)-Holt,C (2592) Berkeley 2018}) 11... e5 $146 {[%emt 0:06:46]} ({Predecessor:} 11... O-O 12. Qf3 Qc7 13. Bb3 Bd7 14. Rfe1 Bd6 15. h3 e5 16. Bg5 exd4 17. Bxf6 gxf6 18. Re4 Qc5 19. Qxf6 {½-½ (87) Perez Manas,B (2350)-Diaz Camallonga,C (2463) Barcelona 2018}) 12. Nb5 {[%emt 0:06:56]} Qb8 {[%emt 0:06:57]} 13. Qf3 {[%emt 0:10:04]} O-O {[%emt 0:03:27]} 14. Rfe1 {[%emt 0:03:18]} Bd7 {[%emt 0:08:19]} 15. Nc3 {[%emt 0:13:27]} Bc6 {[%emt 0:02:37]} 16. Qg3 {[%emt 0:01:02]} b5 {[%emt 0:07:08]} 17. Bb3 {[%emt 0:19:10]} b4 {[%emt 0:07:18]} 18. Ne2 {[%emt 0:05:13]} Kh8 {[%emt 0:09:47]} 19. f3 {[%emt 0:09:53]} Nd5 {[%emt 0:09:49]} 20. Qf2 {[%emt 0:03:14]} Nxe3 {[%emt 0:06:27]} 21. Qxe3 {[%emt 0:00:12]} f5 {[%emt 0:04:39]} 22. Nf4 {[%emt 0:05:43]} Bh4 {[%emt 0:06:31]} 23. Ne6 {[%emt 0:03:11]} Rf6 {[%emt 0:01:10]} 24. Red1 {[%emt 0:03:11]} Rg6 {[%emt 0:03:29]} 25. Kh1 {[%emt 0:02:57]} Qb7 {[%emt 0:03:38]} 26. Nc5 {[%emt 0:01:56]} Qe7 {[%emt 0:00:23]} 27. Nd3 {[%emt 0:01:07]} Re8 {[%emt 0:01:08]} 28. c3 {[%emt 0:01:46]} bxc3 {[%emt 0:01:26]} 29. bxc3 {[%emt 0:00:06]} f4 {[%emt 0:01:00]} 30. Qe2 {[%emt 0:01:05]} Qc7 {[%emt 0:03:05]} 31. Nb4 {[%emt 0:00:55]} Bb7 {[%emt 0:03:11]} 32. Nd5 {[%emt 0:01:12]} Qb8 {[%emt 0:00:35]} 33. Ba4 {[%emt 0:00:25]} Ree6 {[%emt 0:03:40]} 34. Bc2 {[%emt 0:01:04]} Rh6 {[%emt 0:00:18]} 35. Be4 {[%emt 0:00:22]} Bg3 {[%emt 0:00:36]} 36. h3 {[%emt 0:00:08]} Re8 {[%emt 0:00:46]} 37. Rab1 {[%emt 0:00:51]} Qc8 {[%emt 0:00:21]} 38. Nf6 {[%emt 0:01:48]} gxf6 {[%emt 0:00:50]} 39. Rxb7 {[%emt 0:00:23]} f5 {[%emt 0:01:12]} 40. Bd5 {[%emt 0:00:00]} Qxc3 {[%emt 0:00:00]} 41. Qb5 {[%emt 0:08:02]} Rc8 {[%emt 0:07:33]} 42. Qd7 {[%emt 0:03:27]} e4 $18 {[%emt 0:00:43]} 43. Qxf5 {[%emt 0:01:36]} e3 {[%emt 0:00:51]} 44. Be4 {[%emt 0:01:51]} Kg8 {[%emt 0:07:24]} 45. Qg5+ {[%emt 0:02:21]} Rg6 {[%emt 0:00:16]} 46. Rd8+ {[%emt 0:00:14]} 1-0

[Event "WYCC 2018 G16"]
[Site "Halkidiki"]
[Date "2018.10.30"]
[Round "11"]
[White "Sosa Suarez, Carla Cristina"]
[Black "Golsta, Ramona"]
[Result "1-0"]
[ECO "B39"]
[WhiteElo "2025"]
[BlackElo "1681"]
[Annotator "NA"]
[PlyCount "69"]
[EventDate "2018.10.20"]
[EventType "swiss"]
[EventCountry "GRE"]
[SourceTitle "playchess.com"]
[Source "ChessBase"]
[SourceQuality "1"]
[TimeControl "40/5400+30:1800+30"]

1. e4 c5 2. Nf3 g6 3. d4 cxd4 4. Nxd4 Bg7 5. c4 Nc6 6. Be3 Nf6 7. Nc3 Ng4 8. Qxg4 Nxd4 9. Qd1 e5 10. Bd3 d6 11. O-O O-O 12. a4 a6 13. f3 Be6 14. Ne2 Rc8 15. b3 f5 16. Nxd4 exd4 17. Bf2 fxe4 18. fxe4 Be5 19. Qd2 Bf4 20. Qe2 Qg5 21. Bxd4 Bg4 22. Qe1 Bd2 23. Qg3 Bf4 24. h4 Bxg3 25. hxg5 Be5 26. Bxe5 dxe5 27. Rxf8+ Rxf8 28. Rc1 Rd8 29. Rc3 Rd4 30. Kf2 a5 31. Ke3 Rd8 32. c5 Bd7 33. Bc4+ Kg7 34. Rd3 h5 35. Bb5 1-0

[Event "WYCC 2018 G16"]
[Site "Halkidiki"]
[Date "2018.10.30"]
[Round "11"]
[White "Hercog, Nusa"]
[Black "Shanya Mishra"]
[Result "1/2-1/2"]
[ECO "D43"]
[WhiteElo "2017"]
[BlackElo "1924"]
[Annotator "NA"]
[PlyCount "68"]
[EventDate "2018.10.20"]
[EventType "swiss"]
[EventCountry "GRE"]
[SourceTitle "playchess.com"]
[Source "ChessBase"]
[SourceQuality "1"]
[TimeControl "40/5400+30:1800+30"]

1. d4 {[%emt 0:00:00]} Nf6 {[%emt 0:00:01]} 2. c4 {[%emt 0:00:00]} e6 {[%emt 0:00:33]} 3. Nf3 {[%emt 0:00:00]} d5 {[%emt 0:00:46]} 4. Nc3 {[%emt 0:00:30]} c6 {[%emt 0:01:17]} 5. Qb3 {[%emt 0:00:22]} dxc4 {[%emt 0:01:35]} 6. Qxc4 {[%emt 0:00:07]} b5 {[%emt 0:01:10]} 7. Qd3 {[%emt 0:00:13]} Nbd7 {[%emt 0:01:13]} 8. Bg5 {[%emt 0:00:35]} Be7 {[%emt 0:02:21]} 9. e4 {[%emt 0:01:34]} b4 {[%emt 0:02:14]} 10. Na4 {[%emt 0:03:15]} Qa5 {[%emt 0:03:08]} 11. b3 {[%emt 0:01:21]} e5 {[%emt 0:03:56]} 12. Be2 {[%emt 0:14:26]} O-O {[%emt 0:01:50]} 13. O-O {[%emt 0:02:14]} Rd8 {[%emt 0:01:41]} 14. Qc4 {[%emt 0:15:02]} exd4 {[%emt 0:06:29]} 15. Qxc6 {[%emt 0:02:16]} Nb6 {[%emt 0:12:14]} 16. Nxb6 {[%emt 0:06:45]} axb6 {[%emt 0:00:45]} 17. e5 {[%emt 0:05:36]} Nd5 {[%emt 0:06:33]} 18. Bxe7 {[%emt 0:01:41]} Nxe7 {[%emt 0:00:22]} 19. Qc7 {[%emt 0:03:25]} Rd7 {[%emt 0:02:54]} 20. Qc2 {[%emt 0:00:47]} Bb7 {[%emt 0:02:00]} 21. Rfe1 {[%emt 0:08:28]} Rc8 {[%emt 0:03:51]} 22. Qd2 {[%emt 0:00:27]} Ng6 {[%emt 0:10:23]} 23. e6 {[%emt 0:08:52]} fxe6 {[%emt 0:02:24]} 24. Bc4 {[%emt 0:00:13]} Rxc4 {[%emt 0:08:06]} 25. bxc4 {[%emt 0:00:43]} Bxf3 {[%emt 0:01:33]} 26. gxf3 {[%emt 0:01:48]} Qf5 {[%emt 0:01:34]} 27. Re4 {[%emt 0:05:47]} Qxf3 {[%emt 0:04:10]} 28. Qe2 {[%emt 0:02:33]} Qc3 {[%emt 0:01:36]} 29. Rd1 {[%emt 0:01:25]} e5 {[%emt 0:01:13]} 30. Rxe5 {[%emt 0:04:20]} Nxe5 {[%emt 0:02:42]} 31. Qxe5 {[%emt 0:00:02]} Rd8 {[%emt 0:00:17]} 32. Qe6+ {[%emt 0:02:56]} Kh8 {[%emt 0:00:15]} 33. Qxb6 {[%emt 0:00:36]} Rc8 {[%emt 0:04:56]} 34. Qxd4 {[%emt 0:01:25]} h6 {[%emt 0:00:14]} 1/2-1/2

[Event "WYCC 2018 G16"]
[Site "Halkidiki"]
[Date "2018.10.30"]
[Round "11"]
[White "Duson, Robin"]
[Black "Sankova, Stella"]
[Result "1/2-1/2"]
[ECO "E32"]
[WhiteElo "1999"]
[BlackElo "2051"]
[Annotator "NA"]
[PlyCount "69"]
[EventDate "2018.10.20"]
[EventType "swiss"]
[EventCountry "GRE"]
[SourceTitle "playchess.com"]
[Source "ChessBase"]
[SourceQuality "1"]
[TimeControl "40/5400+30:1800+30"]

1. d4 {[%emt 0:00:00]} Nf6 {[%emt 0:00:00]} 2. c4 {[%emt 0:00:00]} e6 {[%emt 0:00:00]} 3. Nc3 {[%emt 0:00:00]} Bb4 {[%emt 0:00:00]} 4. Qc2 {[%emt 0:00:06]} O-O {[%emt 0:00:00]} 5. a3 {[%emt 0:00:32]} Bxc3+ {[%emt 0:00:13]} 6. Qxc3 {[%emt 0:00:11]} b6 {[%emt 0:03:21]} 7. Bg5 {[%emt 0:00:42]} Bb7 {[%emt 0:00:09]} 8. e3 {[%emt 0:00:30]} h6 {[%emt 0:00:10]} 9. Bh4 {[%emt 0:01:00]} d6 {[%emt 0:01:34]} 10. Ne2 {[%emt 0:01:32]} Nbd7 {[%emt 0:02:52]} 11. Qc2 {[%emt 0:01:58]} c5 {[%emt 0:06:55]} 12. Rd1 {[%emt 0:00:53]} Qc7 {[%emt 0:07:33]} 13. Nc3 {[%emt 0:05:06]} cxd4 {[%emt 0:02:16]} 14. Rxd4 {[%emt 0:00:47]} d5 {[%emt 0:01:59]} 15. Nb5 {[%emt 0:12:07]} Qc6 {[%emt 0:03:39]} 16. Rd2 {[%emt 0:07:15]} dxc4 {[%emt 0:12:54]} 17. Nd4 $17 {[%emt 0:05:36]} Qc5 {[%emt 0:03:21]} 18. f3 {[%emt 0:03:37]} e5 {[%emt 0:13:18]} 19. Nf5 {[%emt 0:02:21]} e4 {[%emt 0:01:28]} 20. Nd6 {[%emt 0:02:34]} Bc6 {[%emt 0:03:54]} 21. Bxc4 {[%emt 0:04:05]} exf3 {[%emt 0:02:14]} 22. O-O {[%emt 0:04:59]} Qxe3+ {[%emt 0:06:23]} 23. Bf2 {[%emt 0:00:50]} Qg5 {[%emt 0:00:41]} 24. Bd4 {[%emt 0:04:39]} Ne4 {[%emt 0:08:47]} 25. Nxe4 {[%emt 0:03:49]} Bxe4 {[%emt 0:00:03]} 26. Qxe4 {[%emt 0:03:28]} Qxd2 {[%emt 0:00:54]} 27. Rxf3 {[%emt 0:00:32]} Qc1+ {[%emt 0:01:13]} 28. Bf1 {[%emt 0:00:09]} Nc5 {[%emt 0:02:29]} 29. Rg3 {[%emt 0:04:20]} Nxe4 {[%emt 0:09:45]} 30. Rxg7+ {[%emt 0:00:08]} Kh8 {[%emt 0:00:02]} 31. Rxf7+ {[%emt 0:00:26]} Nf6 {[%emt 0:04:58]} 32. Bxf6+ {[%emt 0:00:08]} Kg8 {[%emt 0:00:01]} 33. Rg7+ {[%emt 0:00:12]} Kh8 {[%emt 0:00:02]} 34. Rf7+ {[%emt 0:00:22]} Kg8 {[%emt 0:00:04]} 35. Rg7+ 1/2-1/2

[Event "WYCC 2018 G16"]
[Site "Halkidiki"]
[Date "2018.10.30"]
[Round "11"]
[White "Jarocka, Liwia"]
[Black "Yurasova, Daria"]
[Result "0-1"]
[ECO "C70"]
[WhiteElo "1990"]
[BlackElo "2193"]
[Annotator "NA"]
[PlyCount "120"]
[EventDate "2018.10.20"]
[EventType "swiss"]
[EventCountry "GRE"]
[SourceTitle "playchess.com"]
[Source "ChessBase"]
[SourceQuality "1"]
[TimeControl "40/5400+30:1800+30"]

1. e4 {[%emt 0:00:00]} e5 {[%emt 0:00:00]} 2. Nf3 {[%emt 0:00:00]} Nc6 {[%emt 0:00:00]} 3. Bb5 {[%emt 0:00:00]} a6 {[%emt 0:00:00]} 4. Ba4 {[%emt 0:00:00]} b5 {[%emt 0:00:00]} 5. Bb3 {[%emt 0:00:07]} g6 {[%emt 0:00:00] C70: Ruy Lopez: 3...a6 4 Ba4, Norwegian and Delayed Schliemann} 6. c3 {[%emt 0:02:02]} (6. d4 exd4 7. Nxd4 Na5 8. O-O Bg7 9. Re1 Ne7 10. e5 O-O 11. Bg5 c5 12. Bd5 Rb8 13. Nb3 Nxb3 14. axb3 {0-1 (31) Kramnik,V (2792)-Mamedyarov,S (2808) Paris 2018}) 6... Na5 $146 {[%emt 0:02:14]} ({Predecessor:} 6... Bg7 7. O-O Nge7 8. d4 exd4 9. cxd4 O-O 10. d5 Na5 11. d6 cxd6 12. Qxd6 Nb7 13. Qb4 Nc6 14. Qe1 Nc5 15. Bg5 Qe8 16. Nc3 {½-½ (73) Zou,C (2365)-Santos Ruiz,M (2524) Manavgat 2018}) 7. Nxe5 {[%emt 0:06:18]} Nxb3 {[%emt 0:01:12]} 8. Qxb3 {[%emt 0:00:08]} Qe7 {[%emt 0:05:15]} 9. d4 {[%emt 0:00:13]} f6 {[%emt 0:12:16]} 10. Nf3 {[%emt 0:00:17]} Qxe4+ {[%emt 0:00:37]} 11. Be3 {[%emt 0:00:25]} Qd3 {[%emt 0:02:50]} 12. Nbd2 {[%emt 0:09:02]} Bb7 {[%emt 0:01:35]} 13. O-O-O {[%emt 0:05:14]} O-O-O {[%emt 0:03:04]} 14. a4 {[%emt 0:14:27]} Ne7 {[%emt 0:03:35]} 15. Nb1 {[%emt 0:12:05]} Qf5 {[%emt 0:03:55]} 16. axb5 {[%emt 0:00:30]} Qxb5 {[%emt 0:00:37]} 17. Qxb5 {[%emt 0:06:11]} axb5 {[%emt 0:00:03]} 18. Na3 {[%emt 0:00:07]} b4 {[%emt 0:04:39]} 19. cxb4 Nd5 {[%emt 0:01:59]} 20. b5 {[%emt 0:01:31]} Nxe3 {[%emt 0:02:48]} 21. fxe3 {[%emt 0:00:05]} Bh6 {[%emt 0:00:00]} 22. Rd3 {[%emt 0:00:59]} Rhe8 {[%emt 0:03:09]} 23. Re1 {[%emt 0:04:34]} Bd5 {[%emt 0:00:46]} 24. Kd2 {[%emt 0:02:39]} Kb7 {[%emt 0:10:16]} 25. Ke2 {[%emt 0:02:12]} Re6 {[%emt 0:00:35]} 26. Kf2 {[%emt 0:00:28]} Ra8 {[%emt 0:04:45]} 27. Nd2 {[%emt 0:01:40]} Rae8 {[%emt 0:03:06]} 28. Rc3 {[%emt 0:00:35]} f5 {[%emt 0:02:53]} 29. Nc2 {[%emt 0:10:33]} f4 {[%emt 0:04:00]} 30. e4 {[%emt 0:06:02]} Bxe4 {[%emt 0:03:10]} 31. Nb3 {[%emt 0:00:44]} Bf8 {[%emt 0:07:18]} 32. Rc1 {[%emt 0:02:19]} Bd5 {[%emt 0:02:49]} 33. Ne1 {[%emt 0:09:01]} Re2+ {[%emt 0:04:09]} 34. Kf1 {[%emt 0:00:09]} Bb4 {[%emt 0:01:56]} 35. Rxc7+ {[%emt 0:02:25]} Kb8 {[%emt 0:05:56]} 36. Nd3 {[%emt 0:00:07]} Bxg2+ {[%emt 0:05:47]} 37. Kg1 {[%emt 0:00:02]} Bd2 {[%emt 0:00:37]} 38. Nxd2 {[%emt 0:01:27]} Rxd2 {[%emt 0:00:01]} 39. Nxf4 {[%emt 0:00:46]} Bb7 {[%emt 0:00:54]} 40. Rxd7 {[%emt 0:00:00]} g5 {[%emt 0:00:00]} 41. Nd5 {[%emt 0:04:03]} Rxb2 {[%emt 0:12:39]} 42. Nc7 {[%emt 0:09:39]} Rg2+ {[%emt 0:01:18]} 43. Kf1 {[%emt 0:00:18]} Rf8+ {[%emt 0:01:02]} 44. Ke1 {[%emt 0:00:22]} Rg1+ {[%emt 0:00:50]} 45. Kd2 {[%emt 0:00:06]} Rf2+ {[%emt 0:00:41]} 46. Ke3 {[%emt 0:00:06]} Rf3+ {[%emt 0:01:30]} 47. Kd2 {[%emt 0:00:05]} Rxc1 {[%emt 0:00:56]} 48. Kxc1 {[%emt 0:00:03]} Rc3+ {[%emt 0:00:08]} 49. Kd2 {[%emt 0:00:04]} Rxc7 {[%emt 0:00:06]} 50. Rd6 {[%emt 0:01:07]} Be4 {[%emt 0:01:57]} 51. Ke3 {[%emt 0:00:06]} Bg6 {[%emt 0:00:31]} 52. d5 {[%emt 0:00:27]} Kb7 {[%emt 0:02:17]} 53. Kd4 {[%emt 0:00:23]} Rc2 {[%emt 0:00:38]} 54. h3 {[%emt 0:00:26]} Bf5 {[%emt 0:02:38]} 55. Rh6 {[%emt 0:01:33]} Bg6 {[%emt 0:00:42]} 56. Ke5 {[%emt 0:00:55]} Rh2 {[%emt 0:00:49]} 57. d6 {[%emt 0:00:48]} g4 {[%emt 0:04:03]} 58. b6 $19 {[%emt 0:00:58]} (58. Rh4 $142 gxh3 59. Rh6) 58... Kxb6 {[%emt 0:01:12]} 59. Kf4 {[%emt 0:00:06]} Rxh3 {[%emt 0:00:39]} 60. d7 {[%emt 0:00:07]} Kc7 {[%emt 0:00:26]} 0-1

[Event "WYCC 2018 G16"]
[Site "Halkidiki"]
[Date "2018.10.30"]
[Round "11"]
[White "Aciu, Malina-Andreea"]
[Black "Nestorovic, Katarina"]
[Result "1/2-1/2"]
[ECO "B22"]
[WhiteElo "1976"]
[BlackElo "2015"]
[Annotator "NA"]
[PlyCount "94"]
[EventDate "2018.10.20"]
[EventType "swiss"]
[EventCountry "GRE"]
[SourceTitle "playchess.com"]
[Source "ChessBase"]
[SourceQuality "1"]
[TimeControl "40/5400+30:1800+30"]

1. e4 {[%emt 0:00:00]} c5 {[%emt 0:00:00]} 2. c3 {[%emt 0:00:00]} Nf6 {[%emt 0:00:00]} 3. e5 {[%emt 0:00:00]} Nd5 {[%emt 0:00:00]} 4. d4 {[%emt 0:00:00]} cxd4 {[%emt 0:00:09]} 5. Nf3 {[%emt 0:00:00]} e6 {[%emt 0:00:23]} 6. cxd4 {[%emt 0:00:00]} d6 {[%emt 0:00:04]} 7. Bc4 {[%emt 0:00:01]} Nc6 {[%emt 0:00:05]} 8. O-O {[%emt 0:00:08]} Be7 {[%emt 0:00:10]} 9. Qe2 {[%emt 0:00:06]} O-O {[%emt 0:00:34]} 10. Nc3 {[%emt 0:00:04]} Nxc3 {[%emt 0:00:28]} 11. bxc3 {[%emt 0:00:05]} Qc7 {[%emt 0:01:36] B22: Sicilian: 2 c3} (11... dxe5 12. dxe5 b6 13. Rd1 Qc7 14. Bd3 Bb7 15. h4 Rfd8 16. Bf4 Rd5 17. Bc2 Rxd1+ 18. Rxd1 Rd8 19. Rc1 Rd7 20. Nd4 Nxd4 21. cxd4 {0-1 (36) Vachier Lagrave,M (2758)-Grischuk,A (2810) Beijing 2014}) 12. Bd2 {[%emt 0:01:49]} Bd7 {[%emt 0:13:39]} 13. Rfe1 $146 {[%emt 0:03:22]} ({Predecessor:} 13. Bd3 g6 14. Rfe1 Rfd8 15. Rac1 dxe5 16. dxe5 Be8 17. Bb1 Rd5 18. Qc4 Rad8 19. Bg5 Bxg5 20. Nxg5 Rxe5 {1-0 (50) Jankunas,T (2093)-Mak,T (1840) Batumi 2018}) 13... d5 {[%emt 0:25:13]} 14. Bd3 {[%emt 0:03:33]} Qd8 {[%emt 0:04:55]} 15. Rab1 {[%emt 0:18:25]} Na5 {[%emt 0:04:54]} 16. Be3 {[%emt 0:08:00]} b6 {[%emt 0:04:44]} 17. Nd2 {[%emt 0:01:20]} Rc8 {[%emt 0:01:58]} 18. c4 {[%emt 0:04:14]} dxc4 {[%emt 0:01:48]} 19. Nxc4 {[%emt 0:00:18]} Nxc4 {[%emt 0:00:19]} 20. Bxc4 {[%emt 0:00:07]} Bc6 {[%emt 0:02:55]} 21. Bd3 {[%emt 0:07:26]} Qd5 {[%emt 0:04:21]} 22. f3 {[%emt 0:03:31]} Rfd8 {[%emt 0:04:59]} 23. Bf2 {[%emt 0:06:05]} Qa5 {[%emt 0:04:43]} 24. Ba6 {[%emt 0:00:52]} Rc7 {[%emt 0:01:29]} 25. Bb5 {[%emt 0:12:14]} Bxb5 {[%emt 0:03:00]} 26. Rxb5 {[%emt 0:00:25]} Qa4 {[%emt 0:00:59]} 27. Rb2 {[%emt 0:08:28]} Ba3 {[%emt 0:03:28]} 28. Rb3 {[%emt 0:00:40]} Rdc8 {[%emt 0:02:04]} 29. Qd3 {[%emt 0:02:46]} Bb4 {[%emt 0:01:22]} 30. Rf1 {[%emt 0:01:42]} Rc1 {[%emt 0:01:27]} 31. g4 {[%emt 0:02:59]} R1c4 {[%emt 0:03:55]} 32. d5 {[%emt 0:04:56]} exd5 {[%emt 0:00:32]} 33. Qxd5 {[%emt 0:00:16]} Qxa2 {[%emt 0:04:16]} 34. Qd3 {[%emt 0:03:52]} Bc3 {[%emt 0:02:50]} 35. Rb5 {[%emt 0:02:39]} Qd2 {[%emt 0:01:10]} 36. Qf5 {[%emt 0:02:21]} g6 {[%emt 0:01:57]} 37. Qf6 {[%emt 0:01:32]} Qf4 {[%emt 0:00:51]} 38. Qxf4 {[%emt 0:01:49]} Rxf4 {[%emt 0:00:05]} 39. Kg2 {[%emt 0:00:17]} Rb4 {[%emt 0:00:25]} 40. Rd5 {[%emt 0:00:00]} Re8 {[%emt 0:00:00]} 41. Rc1 {[%emt 0:03:09]} Bb2 {[%emt 0:09:48]} 42. Rc7 {[%emt 0:03:02]} a5 {[%emt 0:09:32]} 43. Rb7 $2 {[%emt 0:03:08]} ({White has to play} 43. Bg3 $15) 43... Rxe5 {[%emt 0:02:06]} 44. Rd8+ $1 {[%emt 0:07:58]} Kg7 $11 {[%emt 0:00:12]} 45. Rdd7 {[%emt 0:00:05]} Re8 {[%emt 0:05:08]} 46. Bxb6 {[%emt 0:05:56]} Bc3 {[%emt 0:01:33]} 47. Bxa5 {[%emt 0:02:25]} Rb2+ {[%emt 0:01:21]} 1/2-1/2

[Event "WYCC 2018 G16"]
[Site "Halkidiki"]
[Date "2018.10.30"]
[Round "11"]
[White "De Silva, Tenara"]
[Black "Cramling Bellon, Anna"]
[Result "1-0"]
[ECO "A30"]
[WhiteElo "1927"]
[BlackElo "2025"]
[Annotator "NA"]
[PlyCount "130"]
[EventDate "2018.10.20"]
[EventType "swiss"]
[EventCountry "GRE"]
[SourceTitle "playchess.com"]
[Source "ChessBase"]
[SourceQuality "1"]
[TimeControl "40/5400+30:1800+30"]

1. c4 {[%emt 0:00:00]} c5 {[%emt 0:00:00]} 2. Nf3 {[%emt 0:00:00]} Nc6 {[%emt 0:00:00]} 3. Nc3 {[%emt 0:00:00]} e5 {[%emt 0:00:11]} 4. e3 {[%emt 0:00:08]} Nf6 {[%emt 0:00:30]} 5. d4 {[%emt 0:00:20]} cxd4 {[%emt 0:00:33]} 6. exd4 {[%emt 0:00:07]} e4 {[%emt 0:00:05] localhost_prl} 7. Ne5 {[%emt 0:00:16]} Bb4 {[%emt 0:02:14] A34: Symmetrical English: 2 Nc3, lines with ...d5} 8. Bf4 {[%emt 0:04:10]} (8. Be2 O-O 9. O-O Re8 10. Bf4 Bxc3 11. bxc3 Ne7 12. c5 Ned5 13. Bd2 d6 14. cxd6 Qxd6 15. c4 Ne7 16. Bc3 {0-1 (97) Wei,Y (2740)-Adhiban,B (2671) Hoogeveen 2017}) 8... Qa5 {[%emt 0:29:05]} 9. Nxc6 $146 {[%emt 0:07:33]} ({Predecessor:} 9. Qd2 Ne7 10. c5 b5 11. cxb6 Qxb6 12. a3 Bxc3 13. bxc3 O-O 14. Be2 Ba6 15. c4 {0-1 (27) Noroozi,O (2274)-Sadorra,J (2455) Dubai 2008}) 9... bxc6 {[%emt 0:01:31]} 10. Qc2 {[%emt 0:02:46]} d5 {[%emt 0:01:37]} 11. c5 {[%emt 0:01:43]} O-O {[%emt 0:05:15]} 12. Be2 {[%emt 0:01:48]} Ba6 {[%emt 0:05:28]} 13. Bxa6 {[%emt 0:01:50]} Qxa6 {[%emt 0:00:41]} 14. a3 {[%emt 0:00:24]} Rfe8 {[%emt 0:05:40]} 15. Rc1 {[%emt 0:05:03]} Bxc3+ {[%emt 0:05:34]} 16. Qxc3 {[%emt 0:00:53]} e3 {[%emt 0:08:35]} 17. f3 {[%emt 0:02:33]} Nh5 {[%emt 0:02:31]} 18. Bd6 {[%emt 0:01:17]} Re6 {[%emt 0:18:53]} 19. g3 {[%emt 0:08:30]} g5 {[%emt 0:04:29]} 20. Be5 {[%emt 0:03:33]} f6 {[%emt 0:01:45]} 21. Bd6 {[%emt 0:00:18]} Ng7 {[%emt 0:01:29]} 22. Qc2 {[%emt 0:05:44]} Ne8 {[%emt 0:02:12]} 23. Qe2 {[%emt 0:01:41]} Qa5+ {[%emt 0:00:21]} 24. Kf1 {[%emt 0:01:09]} Nxd6 {[%emt 0:02:23]} 25. cxd6 {[%emt 0:00:04]} Rxd6 {[%emt 0:00:22]} 26. Qxe3 {[%emt 0:00:46]} Qa6+ {[%emt 0:00:55]} 27. Kf2 {[%emt 0:01:36]} Qb7 {[%emt 0:00:20]} 28. Rc2 {[%emt 0:00:35]} Qd7 {[%emt 0:00:32]} 29. Re1 {[%emt 0:00:24]} Rb8 {[%emt 0:00:44]} 30. Qe7 {[%emt 0:01:13]} Rb7 {[%emt 0:00:29]} 31. Qxd7 {[%emt 0:01:08]} Rbxd7 {[%emt 0:00:09]} 32. Re8+ {[%emt 0:00:05]} Kf7 {[%emt 0:00:37]} 33. Rc8 {[%emt 0:00:11]} Rb7 {[%emt 0:00:07]} 34. b4 {[%emt 0:00:13]} Ke6 {[%emt 0:01:11]} 35. R8xc6 {[%emt 0:00:48]} Kd7 {[%emt 0:00:15]} 36. R6c5 {[%emt 0:01:06]} Ke6 {[%emt 0:00:33]} 37. Re2+ {[%emt 0:01:20]} Kf5 {[%emt 0:00:40]} 38. g4+ {[%emt 0:00:12]} Kg6 {[%emt 0:00:08]} 39. Kg3 {[%emt 0:00:45]} h5 {[%emt 0:00:35]} 40. gxh5+ {[%emt 0:00:00]} Kxh5 {[%emt 0:00:00]} 41. Re8 {[%emt 0:01:37]} Kg6 {[%emt 0:01:18]} 42. Rec8 {[%emt 0:02:25]} Kf5 {[%emt 0:10:46]} 43. R5c6 {[%emt 0:03:27]} Ke6 {[%emt 0:10:59]} 44. Re8+ {[%emt 0:03:32]} Kd7 {[%emt 0:00:53]} 45. Rcc8 {[%emt 0:00:12]} Rbb6 {[%emt 0:04:06]} 46. Kg4 {[%emt 0:06:36]} Ra6 {[%emt 0:01:03]} 47. Rcd8+ {[%emt 0:01:38]} Kc7 {[%emt 0:01:04]} 48. Rxd6 {[%emt 0:00:28]} Kxd6 {[%emt 0:01:35]} 49. Re3 {[%emt 0:00:04]} Kd7 {[%emt 0:02:25]} 50. h3 {[%emt 0:01:16]} Rb6 {[%emt 0:01:23]} 51. Kf5 {[%emt 0:01:43]} a6 {[%emt 0:00:23]} 52. Rc3 {[%emt 0:00:34]} Rd6 {[%emt 0:00:43]} 53. Rc5 {[%emt 0:00:27]} Kd8 {[%emt 0:00:02]} 54. a4 {[%emt 0:00:54]} Kd7 {[%emt 0:00:06]} 55. b5 {[%emt 0:00:10]} axb5 {[%emt 0:00:03]} 56. axb5 {[%emt 0:00:04]} Rb6 {[%emt 0:01:51]} 57. Rxd5+ {[%emt 0:00:10]} Ke7 {[%emt 0:00:09]} 58. Rc5 {[%emt 0:00:47]} Rb7 {[%emt 0:00:25]} 59. Ke4 {[%emt 0:02:50]} Rb6 {[%emt 0:00:53]} 60. d5 {[%emt 0:01:26]} Rb7 {[%emt 0:00:20]} 61. Kd4 {[%emt 0:00:26]} Rb8 {[%emt 0:00:25]} 62. Kc4 {[%emt 0:01:17]} Rh8 {[%emt 0:00:29]} 63. b6 {[%emt 0:00:05]} Rb8 {[%emt 0:00:46]} 64. Rc6 {[%emt 0:00:11]} Kd7 $18 {[%emt 0:00:39]} 65. Rxf6 {[%emt 0:00:36]} Rh8 {[%emt 0:00:08]} 1-0